Cogmind - Beta 17 @@@ ROGUE MODE // 2026.07.17 @ 16:18:31 Player: Ice_Kraken505 Result: Destroyed self with Rocket Launcher Performance ------------- Evolutions (0) 0 Regions Visited (2) 400 Robots Destroyed (31) 155 Value Destroyed (484) 484 Prototype IDs (2) 40 Alien Tech Used (0) 0 Bonus (0) 0 TOTAL SCORE: 1079 Bonus ------- None Cogmind --------- Core Integrity 0/250 Matter 254/300 Energy 140/160 System Corruption 3% Temperature Cool (24) Movement Walking (190) Ox1 Location -10/Mines Parts ------- > --- POWER (1) -------- Light Nuclear Core > --- PROPULSION (2) --- Aluminum Leg > --- UTILITY (2) ------ Improved Terrain Scanner Terrain Scan Processor > --- WEAPON (2) ------- Heavy EM Pulse Gun Rocket Launcher > --- INVENTORY (5) ---- Structural Scanner Experimental Sensor Array Terrain Scanner Small Laser Datajack Peak State ------------ > --- POWER ------------ Light Nuclear Core > --- PROPULSION ------- Aluminum Leg Aluminum Leg > --- UTILITY ---------- Improved Terrain Scanner Terrain Scan Processor > --- WEAPON ----------- Heavy EM Pulse Gun Rocket Launcher > --- INVENTORY -------- Heat Sink Structural Scanner Experimental Sensor Array Terrain Scanner Datajack [Rating: 15] Favorites ----------- Power Ion Engine Engine Ion Engine Power Core Light Nuclear Core Propulsion Aluminum Leg Leg Aluminum Leg Hover Unit Hover Unit Utility Improved Terrain Scanner Device Improved Terrain Scanner Storage Small Storage Unit Processor Terrain Scan Processor Weapon Heavy EM Pulse Gun Energy Gun Heavy EM Pulse Gun Energy Cannon Particle Cannon Launcher Rocket Launcher Special Weapon Mining Laser Special Melee Weapon Datajack Build | -11 -10 -10 ------- Run | Yrd Mat Min Slots Evolved . | . . . Power . | . . . Propulsion . | . . . Utility . | . . . Weapon . | . . . Parts Attached 25 | 7 15 3 Power 5 | 1 3 1 Engine 4 | 1 3 . Core 1 | . . 1 Reactor . | . . . Propulsion 5 | 2 3 . Treads . | . . . Leg 3 | 2 1 . Wheel . | . . . Hover 2 | . 2 . Flight . | . . . Utility 6 | 2 3 1 Device 4 | 1 3 . Storage 1 | 1 . . Processor 1 | . . 1 Hackware . | . . . Protection . | . . . Artifact . | . . . Weapon 9 | 2 6 1 Energy Gun 5 | 2 3 . Energy Cannon 1 | . 1 . Ballistic Gun . | . . . Ballistic Cannon . | . . . Launcher 1 | . . 1 Special Weapon 1 | . 1 . Impact Weapon . | . . . Slashing Weapon . | . . . Piercing Weapon . | . . . Special Melee Weapon 1 | . 1 . Unidentified Prototypes . | . . . Parts Lost 9 | . 8 1 Power 1 | . 1 . Propulsion 4 | . 3 1 Utility . | . . . Weapon 4 | . 4 . Highest Loss Streak 4 | . 4 1 To Critical Strikes . | . . . Average Backups 4 | 1 4 5 Power . | . . . Propulsion . | . . . Utility 3 | . 3 3 Weapon . | . . . Tool/Special . | . . . Unused Backups 5 | . 2 3 Power . | . . . Propulsion . | . . . Utility 3 | . 1 2 Weapon 2 | . 1 1 Tool/Special . | . . . Average Slot Usage (%) 91 | . 88 100 Engine 13 | . 14 10 Leg 24 | . 23 28 Hover 2 | . 3 . Device 21 | . 20 24 Storage 3 | . 4 . Energy Gun 17 | . 17 15 Launcher 2 | . . 9 Special Melee Weapon 3 | . 4 2 Peak Build Rating 15 | 9 11 15 Average Rating 8 | 7 8 12 On Entrance 6 | . 9 11 Avg Prop Armor Cover (%) . | . . . Naked Turns . | . . . Heaviest Build 15 | 15 15 14 Greatest Support 20 | 20 20 20 Greatest Overweight (x) 2 | 1 2 . Average Overweight (x) . | . . . Largest Inventory Capacity 8 | 8 8 5 Average Capacity 5 | 7 5 5 Most Carried 7 | 3 7 5 Average Carried 4 | 1 4 4 Final Capacity 8 | 8 5 5 Final Carried 5 | 3 5 5 Class Distribution -------------------- 100% | Mutant Dominant Class ---------------- Mutant | -10/Materials Mutant | -10/Mines Resources | -11 -10 -10 ----------- Run | Yrd Mat Min Matter Collected 563 | 270 212 81 Remotely . | . . . Salvage Created 766 | 190 457 119 Parts 64 | 19 32 13 Haulers Intercepted 2 | . 2 . Recyclers Shooed 1 | 1 . . Parts Field Recycled . | . . . Retrieved Matter . | . . . Parts Self-Destructed . | . . . Prevented . | . . . Parts Restored . | . . . Kills | -11 -10 -10 ------- Run | Yrd Mat Min Combat Hostiles Destroyed 19 | . 11 8 Guns 11 | . 10 1 AOE 7 | . . 7 Classes Destroyed 7 | 3 4 . Worker 4 | 2 2 . Tunneler 3 | 3 . . Hauler 2 | . 2 . Recycler 1 | 1 . . Watcher 2 | . 2 . Swarmer 12 | . 6 6 Grunt 7 | . 5 2 Best Kill Streak 4 | 3 4 3 Combat Bots Only 4 | . 4 3 Max Kills in Single Turn 2 | 1 1 2 Gunslinging . | . . . Exploded 2 | . . 2 Melee . | . . . Uniques/NPCs Destroyed . | . . . Combat | -11 -10 -10 -------- Run | Yrd Mat Min Hostile Shots Fired 107 | . 98 9 Missed 30 | . 27 3 Hits 77 | . 71 6 Projectile 77 | . 71 6 Critical Strikes 1 | . 1 . Damage Taken 963 | . 733 230 Core 257 | . 128 129 Absorbed by Shields . | . . . Core Remaining (%) 100 | 100 . . Volleys Fired 96 | 14 76 6 Largest 2 | 2 2 2 Hottest 150 | 90 150 78 Shots Fired 168 | 28 127 13 Gun 157 | 28 123 6 Cannon 1 | . 1 . Launcher 7 | . . 7 Special 3 | . 3 . Kinetic . | . . . Thermal 110 | 14 96 . Explosive 7 | . . 7 Electromagnetic 51 | 14 31 6 Robot Hit Streak 9 | 6 9 4 Robot Miss Streak 5 | 3 5 3 Penetration Max . | . . . Secondary Targets 1 | . 1 . Max Gunslinging Chain 1 | . 1 . Shots Hit Robots 102 | 19 71 12 Core Hits 41 | 7 25 9 Critical Kills . | . . . Critical Parts Destroyed . | . . . Critical Strikes 5 | 1 4 . Burn 4 | 1 3 . Corrupt 1 | . 1 . Melee Attacks 11 | . 4 7 Impact . | . . . Slashing . | . . . Piercing . | . . . Sneak Attacks 10 | . 3 7 Combat Hostiles . | . . . Follow-up Attacks . | . . . Damage Inflicted 1477 | 276 833 368 Guns 1129 | 276 809 44 Cannons . | . . . Explosions 324 | . . 324 Melee . | . . . Ramming . | . . . Kinetic . | . . . Thermal 800 | 136 664 . Explosive 324 | . . 324 Electromagnetic 353 | 140 169 44 Impact . | . . . Slashing . | . . . Piercing . | . . . Highest Corruption 3 | . 3 3 Average Corruption 2 | . 2 3 Corruption Purged . | . . . Corruption Blocked . | . . . Effects 15 | . 7 8 Message Errors 6 | . 2 4 Matter Fused 3 | . 3 . Heat Flow Errors 2 | . 1 1 Data Loss (minor) 1 | . . 1 Data Loss (major) 1 | . . 1 Misfires 1 | . . 1 Weapon Failures 1 | . 1 . Overload Shots . | . . . Overflow Damage 36 | . . 36 Projectiles . | . . . Explosions 36 | . . 36 Melee . | . . . Knockbacks . | . . . Impact . | . . . Kinetic . | . . . Secondary . | . . . Self-Inflicted Damage 167 | . . 167 Shots 5 | . . 5 Rammed . | . . . Targets Rammed . | . . . Kicked . | . . . Crushed . | . . . Highest Temperature 313 | 120 313 204 Average Temperature 85 | 51 92 99 Received Heat Transfer 267 | . 249 18 Effects 3 | . 3 . Interference 3 | . 3 . Siege Activations . | . . . Martial Activations . | . . . Shielding Activations . | . . . Robots Disrupted . | . . . Combat Hostiles . | . . . Robots Corrupted . | . . . Combat Hostiles . | . . . Parts Fried . | . . . Impact Corruptions . | . . . Robots Melted 1 | . 1 . Combat Hostiles 1 | . 1 . Parts Melted 3 | 1 2 . Heat Transferred 2535 | 481 2054 . Parts Sabotaged . | . . . Parts Stolen . | . . . Parts Stripped . | . . . Power Chain Reactions . | . . . Alert | -11 -10 -10 ------- Run | Yrd Mat Min Maximum Alert Level . | . . . Low Security (%) 100 | 100 100 100 Level 1 . | . . . Level 2 . | . . . Level 3 . | . . . Level 4 . | . . . Level 5 . | . . . High Security . | . . . Max Security . | . . . Peak Influence 136 | 10 98 136 Initial . | . . . Average 20 | 1 19 30 Influence Increases 652 | 30 343 279 Destroy 0b10 Robot/C 380 | . 220 160 Destroy 0b10 Robot/NC 60 | 30 30 . Destroy Leader 78 | . 48 30 Successful Hack 26 | . 26 . Disable Machine 30 | . . 30 Destroy Structure 63 | . 4 59 Lose Combat Pursuer 15 | . 15 . Influence Decreases 455 | 30 343 82 Time Decay 374 | 30 272 72 Lost Part 81 | . 71 10 Squads Dispatched 3 | . 3 . Investigation 3 | . 3 . Extermination . | . . . Reinforcement . | . . . Assault . | . . . Garrison . | . . . Intercept . | . . . Searches Triggered . | . . . Construction Impeded . | . . . Haulers Reinforced . | . . . Active Scanning Responses . | . . . Cargo Convoy Interrupts . | . . . Stealth | -11 -10 -10 --------- Run | Yrd Mat Min Distress Signals 2 | . 2 . Communications Jammed . | . . . Distress Signals . | . . . Times Spotted 37 | . 29 8 Peak Tracking Total 4 | . 4 3 Tactical Retreats 3 | . 3 . Traps | -11 -10 -10 ------- Run | Yrd Mat Min Traps Triggered 2 | . 2 . Indirectly . | . . . Trap Hack Attempts . | . . . Triggered . | . . . Disarmed . | . . . Reprogrammed . | . . . Reused . | . . . Traps Extracted . | . . . Installed . | . . . Triggered . | . . . Machines | -11 -10 -10 ---------- Run | Yrd Mat Min Machines Disabled 2 | . . 2 Max in Single Turn 1 | . . 1 Machines Repaired . | . . . Machines Dismantled . | . . . Machines Sabotaged . | . . . Overloaded Fab Kills . | . . . Hacking | -11 -10 -10 --------- Run | Yrd Mat Min Machines Accessed 9 | . 9 . Terminals 7 | . 7 . Fabricators . | . . . Repair Stations 1 | . 1 . Recycling Units 1 | . 1 . Scanalyzers . | . . . Garrison Access . | . . . Total Hacks 23 | . 23 . Successful 10 | . 10 . Failed 13 | . 13 . Catastrophic 5 | . 5 . Database Lockouts . | . . . Manual 5 | . 5 . Terminals 21 | . 21 . Fabricators . | . . . Repair Stations 1 | . 1 . Recycling Units 1 | . 1 . Scanalyzers . | . . . Garrison Access . | . . . Terminal Hacks 8 | . 8 . Prototype ID Bank 1 | . 1 . Branch Access Points 1 | . 1 . Locate Traps 2 | . 2 . Reinforcement Status 1 | . 1 . Zone Layout 3 | . 3 . Fabricator Hacks . | . . . Repair Station Hacks 1 | . 1 . Scan Component 1 | . 1 . Recycling Unit Hacks 1 | . 1 . Report Inventory 1 | . 1 . Scanalyzer . | . . . Garrison Access Hacks . | . . . Unauthorized Hacks . | . . . Terminals . | . . . Fabricators . | . . . Repair Stations . | . . . Recycling Units . | . . . Scanalyzers . | . . . Garrison Access . | . . . Data Cores Recovered . | . . . Used . | . . . Hacking Detections 8 | . 8 . Full Trace Events 4 | . 4 . Feedback Events 1 | . 1 . Corruption 1 | . 1 . Feedback Blocked . | . . . Robot Schematics Acquired . | . . . Robots Built . | . . . Authchips . | . . . Time . | . . . Total Robot Build Rating . | . . . Part Schematics Acquired . | . . . Parts Built . | . . . Authchips . | . . . Time . | . . . Total Part Build Rating . | . . . Part Studies Acquired . | . . . Parts Repaired . | . . . Time . | . . . Parts Recycled . | . . . Recycled Matter . | . . . Retrieved Matter . | . . . Retrieved Components . | . . . Parts Scanalyzed . | . . . Part Schematics Acquired . | . . . Parts Damaged . | . . . Bothacking | -11 -10 -10 ------------ Run | Yrd Mat Min Used RIF Installer . | . . . Robots Hacked 8 | . 3 5 Non-combat 7 | . 2 5 Combat 1 | . 1 . Robot Hacks Applied 8 | . 3 5 parse_system 1 | . 1 . no_distress 7 | . 2 5 Relay Couplers Released . | . . . Fabnet Peak Effective % . | . . . Robots Rewired . | . . . Allies Hacked . | . . . Hacks Repelled . | . . . Allies | -11 -10 -10 -------- Run | Yrd Mat Min Total Allies . | . . . Largest Group . | . . . Highest-Rated Group . | . . . Highest-Rated Ally . | . . . Total Orders . | . . . Ally Attacks . | . . . Total Damage . | . . . Kills . | . . . Allies Corrupted . | . . . Allies Melted . | . . . Intel | -11 -10 -10 ------- Run | Yrd Mat Min Active Infowar (turns) 2182 | 97 1623 462 Terrain 1797 | 97 1238 462 Structural 956 | . 609 347 Seismic 434 | . 434 . Robot Analysis Total . | . . . Derelict Logs Recovered 2 | . . 2 Drone Launches . | . . . Drone Recoveries . | . . . Exploration | -11 -10 -10 ------------- Run | Yrd Mat Min Turns Passed 2237 | 152 1623 462 Spaces Moved 1494 | 81 1078 335 Core 2 | 2 . . Treads . | . . . Legs 1379 | 79 965 335 Wheels . | . . . Hover 113 | . 113 . Flight . | . . . Fastest Speed 50 | 50 116 120 Average Speed 119 | 120 119 120 Slowest Speed 190 | 190 180 120 Overloaded Moves . | . . . Propulsion Burnouts . | . . . Robots Hopped . | . . . Potential Cave-ins . | . . . Cave-ins Triggered . | . . . Exploration Rate (%) 56 | 4 92 73 Regions Visited 2 Branch Regions 1 Pre-discovered Areas . | . . . Known Exits Taken 1 | . 1 . Unknown Exits Taken 1 | 1 . . Scrap Searched 1 | . . 1 Spaces Dug . | . . . Terrain Destroyed 76 | . 2 74 Melee . | . . . Projectile 2 | . 2 . AOE 74 | . . 74 Terrain Rammed . | . . . Walls Destroyed . | . . . Machines Disabled . | . . . Actions | -11 -10 -10 --------- Run | Yrd Mat Min Total 1758 | 104 1272 382 Wait 92 | . 69 23 Move 1492 | 80 1077 335 Hop . | . . . Pick Up 17 | 3 12 2 Fast Attach 15 | 7 6 2 Attach 9 | . 9 . Detach 4 | . 4 . Swap 10 | . 7 3 Drop 12 | . 8 4 Fire 96 | 14 76 6 Melee 11 | . 4 7 Ram . | . . . Kick . | . . . Crush . | . . . Escape Stasis . | . . . Rewire . | . . . Trap . | . . . Miscellaneous . | . . . Route ------- -11/Scrapyard -10/Materials (discovered 5 exits: [*Mat x3] / *Min / [*Sub]) -10/Mines (discovered 1 exit: [*Mat]) History --------- Turn | Location | Event 14 | -11/Scrapyard | Discovered new exit (range 16) 153 | -11/Scrapyard | Entered Materials 306 | -10/Materials | Build established: Mutant 498 | -10/Materials | Discovered new exit (range 11) 646 | -10/Materials | Lost 4 parts (2n2w) 753 | -10/Materials | Derelicts attacked the area 769 | -10/Materials | Discovered new exit (range 16) 831 | -10/Materials | Discovered new exit (range 14) 927 | -10/Materials | Core integrity fell below 50% 1229 | -10/Materials | Identified exit to Mines 1273 | -10/Materials | Discovered new exit (range 6) 1450 | -10/Materials | Discovered new exit (range 12) 1776 | -10/Materials | Entered Mines 1788 | -10/Mines | Learned Materials security intel 1810 | -10/Mines | Found a damaged Exp. Sensor Array with a note attached 1815 | -10/Mines | Received a Rocket Launcher from a helpful Derelict 1817 | -10/Mines | Found Prototype Device 2135 | -10/Mines | Discovered new exit (range 16) 2158 | -10/Mines | Core integrity fell below 20% 2238 | -10/Mines | Destroyed self with Rocket Launcher Last Messages --------------- The unstable cave ceiling collapses. R-06 Scavenger collects Aluminum Leg. EXIT=FOUND The unstable cave ceiling collapses. U-05 Engineer lays Concrete. The unstable cave ceiling collapses. System corrupted: Heat flow error (+220). S-10 Pest destroyed. Destroyed Flight Unit. S-10 Pest destroyed. Destroyed Lgt. Ion Engine. S-10 Pest destroyed. Acquired 4 matter. Acquired 9 matter. The unstable cave ceiling collapses. B61M9YHMTTF8HYNF6VO5FCGRP Aluminum Leg destroyed. Destroyed Aluminum Leg. S-10 Pest destroyed. Seismic Survey Station disabled. Map ----- +----------------------------------------------------+ | | | ???????????????????????????????? | | ???????????????????????????????? | | ???????????????????????????????? | | ??????????????????????????###### | | ?????????????????????????####### | | ?????????????????????####### ## | | ?????????????#??????####### | | ????????????????????### ## | | ????????????????????## | | ???????????#????????#### ## | | ????????????????????##### ### | | ???#??????#???????????### ### | | ??????????#????????????## ### | | ??????????#????????????## ## | | ????????#?????????????### ## | | #????????????????????#### ### | | ????#?????####?#???##### ### | | ?????##### ??????### ## | | ?????# ## """ ??#??## | | ????## ""??#???## | | #?#?# * """??#???## | | ??#?# =% ? ?????## ### | | ????# [ #?######??### #### | | ????# #?#####???### #####? | | ????# @ # ##?##?## ####?? | | ?#??# #### ######## ###?#?? | | #??## ### ######## ###???? | | ???### ## # ##???? | | ??#?## ##?#?? | | ?#??### ##???? | | ?????### ## ## ###??? | | ???#?### #### ### ##??? | | ???##?## #### ######### ? | | ##?#??## ####### | | ???#??########## ###?### | | ##????########## ######? | | ???#????##??#?## #####?# | | ?############### ######? # | | ##??############ ##### #### | | #???## #### #### ##### | | ???### ### #### ########?# | | ??#### ### ### """ #######?## | | ?##### ### ### """ #######?? | | #### ### # ###??#? | | ### ##### ## ###### | | ?## ##### ## ###### | | ?### ##### ## | | ##### ########## * # ###### | | ??#### ########### ######## | +----------------------------------------------------+ Best States ------------- Heat Dissipation 35 Energy Generation 14 Energy Capacity 250 Matter Stores 300 Matter Capacity 300 Sight Range 16 Terrain Scan Range 16 Terrain Scan Density 85 Evasion (%) 55 Item Schematics ----------------- None Robot Schematics ------------------ None Fabricated ------------ Nothing Repaired ---------- Nothing Studied --------- None Alien Tech Used ----------------- None Achievements -------------- None Challenges ------------ None Game ------ Seed FortressClaymoresNetwork Manual? 0 Play Time 00:29:23 Cumulative 29.8 hours Start 2026.07.17 @ 15:43:51 End 2026.07.17 @ 16:18:31 Sessions 1 Manual Loads 0 Difficulty Rogue Special Mode None Game No. 31 Rogue 31 Adventurer 0 Explorer 0 Win Type - Total 0 Types 0/0/0/0/0/0/0/0/0/0 Lore% 20 Gallery% 27 Achievement% 18 Wizard Run 0 Options --------- Layout 1 ASCII 0 Keyboard 1 Movement Arrows Keybinds 0 Fullscreen 2 Font 24/Smallcaps Map View 50x35 Zoom Use 0% Tactical HUD 0 Map Filters NONE Filters NONE Steam 1 RUN: 2fc2e026-e210-49f4-a3eb-da2adc800a41